{"text_format":"3","workbook":"xlsx","n_sheets":3,"sheets":["Start","Budget-Rad","Daten"],"not_rendered":{"charts":1,"defined_names":5},"read":"whole","date_system":"1900"}

{"sheet":"Start","index":0,"n_rows":7,"n_cols":2,"rows_kept":7}
[null,"Über diese Vorlage"]
[null,"Behalten Sie mit dieser Vorlage den Überblick über Ihre monatlichen Ausgaben und Ersparnisse."]
[null,"Geben Sie die Details zu den Ausgaben in die Tabelle und das monatliche Einkommen ein, um die Ersparnisse zu berechnen."]
[null,"Das Ringdiagramm mit den Ausgaben und Ersparnissen wird automatisch aktualisiert."]
[null,"Anmerkung:"]
[null,"Zusätzliche Anweisungen finden Sie in Spalte A auf dem Arbeitsblatt BUDGET-RAD. Diese Texte wurden absichtlich ausgeblendet. Um die Texte zu entfernen, wählen Sie Spalte A und dann ENTF aus. Um die Texte einzublenden, wählen Sie Spalte A aus, und ändern Sie die Schriftfarbe."]
[null,"Wenn Sie mehr zur Tabelle erfahren möchten, drücken Sie die UMSCHALTTASTE und dann innerhalb der Tabelle F10. Wählen Sie die Option „TABELLE“ und dann „ALTERNATIVTEXT“ aus."]

{"sheet":"Budget-Rad","index":1,"n_rows":23,"n_cols":7,"rows_kept":23,"merged":[[0,1,0,2],[0,3,0,6]]}
[null,"Budget-Rad",null,"Füllen Sie die Tabelle in dieser Vorlage aus. Im Diagramm werden Ihre monatlichen Ausgaben gegenüber Ihren monatlichen Einkünften grafisch dargestellt. Es berechnet auch die Prozentsätze, um Ihnen zu zeigen, wie viel Sie sparen werden bzw. gespart haben."]
[null,"Monatlich \nEinkünfte",{"$nulls":4},"Ersparnisse \nBetrag"]
[null,{"v":5738,"d":"5,738 €"},{"$nulls":4},{"$f":"Spareinlagen","v":{"v":2777,"d":"2,777 €"}}]
[{"$nulls":6},"Berechneter Wert \nautomatisch"]
[]
[null,"Ausgaben","Kategorie","Betrag","Häufigkeit","Monatlicher Betrag","% des Gesamtwerts"]
[null,"Versicherungen","Verkehrsmittel",{"v":300,"d":"300 €"},"Alle 6 Monate",{"$f":"IF(Ausgaben[[#This Row],[Betrag]]>0,IF(Ausgaben[[#This Row],[Häufigkeit]]<>\"\",ROUND(IF(Ausgaben[[#This Row],[Häufigkeit]]=\"Monatlich\",Ausgaben[Betrag],IF(Ausgaben[[#This Row],[Häufigkeit]]=\"Wöchentlich\",Ausgaben[[#This Row],[Betrag]]*4,IF(Ausgaben[[#This Row],[Häufigkeit]]=\"Vierteljährlich\",Ausgaben[[#This Row],[Betrag]]/3,IF(Ausgaben[[#This Row],[Häufigkeit]]=\"Alle 6 Monate\",Ausgaben[[#This Row],[Betrag]]/6,IF(Ausgaben[[#This Row],[Häufigkeit]]=\"Jährlich\",Ausgaben[[#This Row],[Betrag]]/12,IF(Ausgaben[[#This Row],[Häufigkeit]]=\"Jede zweite Woche\",Ausgaben[[#This Row],[Betrag]]*2,IF(Ausgaben[[#This Row],[Häufigkeit]]=\"Jeden zweiten Monat\",Ausgaben[[#This Row],[Betrag]]/2,\"\"))))))),0),\"\"),\"\")","v":{"v":50,"d":"50 €"}},{"$f":"IF(Ausgaben[[#This Row],[Monatlicher Betrag]]<>\"\",Ausgaben[[#This Row],[Monatlicher Betrag]]/Einkünfte,\"\")","v":{"v":0.00871383757406762,"d":"1%"}}]
[null,"Benzin","Verkehrsmittel",{"v":25,"d":"25 €"},"Wöchentlich",{"$f":"IF(Ausgaben[[#This Row],[Betrag]]>0,IF(Ausgaben[[#This Row],[Häufigkeit]]<>\"\",ROUND(IF(Ausgaben[[#This Row],[Häufigkeit]]=\"Monatlich\",Ausgaben[Betrag],IF(Ausgaben[[#This Row],[Häufigkeit]]=\"Wöchentlich\",Ausgaben[[#This Row],[Betrag]]*4,IF(Ausgaben[[#This Row],[Häufigkeit]]=\"Vierteljährlich\",Ausgaben[[#This Row],[Betrag]]/3,IF(Ausgaben[[#This Row],[Häufigkeit]]=\"Alle 6 Monate\",Ausgaben[[#This Row],[Betrag]]/6,IF(Ausgaben[[#This Row],[Häufigkeit]]=\"Jährlich\",Ausgaben[[#This Row],[Betrag]]/12,IF(Ausgaben[[#This Row],[Häufigkeit]]=\"Jede zweite Woche\",Ausgaben[[#This Row],[Betrag]]*2,IF(Ausgaben[[#This Row],[Häufigkeit]]=\"Jeden zweiten Monat\",Ausgaben[[#This Row],[Betrag]]/2,\"\"))))))),0),\"\"),\"\")","v":{"v":100,"d":"100 €"}},{"$f":"IF(Ausgaben[[#This Row],[Monatlicher Betrag]]<>\"\",Ausgaben[[#This Row],[Monatlicher Betrag]]/Einkünfte,\"\")","v":{"v":0.01742767514813524,"d":"2%"}}]
[null,"Rate für Kfz","Verkehrsmittel",{"v":200,"d":"200 €"},"Monatlich",{"$f":"IF(Ausgaben[[#This Row],[Betrag]]>0,IF(Ausgaben[[#This Row],[Häufigkeit]]<>\"\",ROUND(IF(Ausgaben[[#This Row],[Häufigkeit]]=\"Monatlich\",Ausgaben[Betrag],IF(Ausgaben[[#This Row],[Häufigkeit]]=\"Wöchentlich\",Ausgaben[[#This Row],[Betrag]]*4,IF(Ausgaben[[#This Row],[Häufigkeit]]=\"Vierteljährlich\",Ausgaben[[#This Row],[Betrag]]/3,IF(Ausgaben[[#This Row],[Häufigkeit]]=\"Alle 6 Monate\",Ausgaben[[#This Row],[Betrag]]/6,IF(Ausgaben[[#This Row],[Häufigkeit]]=\"Jährlich\",Ausgaben[[#This Row],[Betrag]]/12,IF(Ausgaben[[#This Row],[Häufigkeit]]=\"Jede zweite Woche\",Ausgaben[[#This Row],[Betrag]]*2,IF(Ausgaben[[#This Row],[Häufigkeit]]=\"Jeden zweiten Monat\",Ausgaben[[#This Row],[Betrag]]/2,\"\"))))))),0),\"\"),\"\")","v":{"v":200,"d":"200 €"}},{"$f":"IF(Ausgaben[[#This Row],[Monatlicher Betrag]]<>\"\",Ausgaben[[#This Row],[Monatlicher Betrag]]/Einkünfte,\"\")","v":{"v":0.03485535029627048,"d":"3%"}}]
[null,"Hypothek","Wohnen",{"v":1600,"d":"1,600 €"},"Monatlich",{"$f":"IF(Ausgaben[[#This Row],[Betrag]]>0,IF(Ausgaben[[#This Row],[Häufigkeit]]<>\"\",ROUND(IF(Ausgaben[[#This Row],[Häufigkeit]]=\"Monatlich\",Ausgaben[Betrag],IF(Ausgaben[[#This Row],[Häufigkeit]]=\"Wöchentlich\",Ausgaben[[#This Row],[Betrag]]*4,IF(Ausgaben[[#This Row],[Häufigkeit]]=\"Vierteljährlich\",Ausgaben[[#This Row],[Betrag]]/3,IF(Ausgaben[[#This Row],[Häufigkeit]]=\"Alle 6 Monate\",Ausgaben[[#This Row],[Betrag]]/6,IF(Ausgaben[[#This Row],[Häufigkeit]]=\"Jährlich\",Ausgaben[[#This Row],[Betrag]]/12,IF(Ausgaben[[#This Row],[Häufigkeit]]=\"Jede zweite Woche\",Ausgaben[[#This Row],[Betrag]]*2,IF(Ausgaben[[#This Row],[Häufigkeit]]=\"Jeden zweiten Monat\",Ausgaben[[#This Row],[Betrag]]/2,\"\"))))))),0),\"\"),\"\")","v":{"v":1600,"d":"1,600 €"}},{"$f":"IF(Ausgaben[[#This Row],[Monatlicher Betrag]]<>\"\",Ausgaben[[#This Row],[Monatlicher Betrag]]/Einkünfte,\"\")","v":{"v":0.27884280237016384,"d":"28%"}}]
[null,"Kabelfernsehen","Wohnen",{"v":60,"d":"60 €"},"Monatlich",{"$f":"IF(Ausgaben[[#This Row],[Betrag]]>0,IF(Ausgaben[[#This Row],[Häufigkeit]]<>\"\",ROUND(IF(Ausgaben[[#This Row],[Häufigkeit]]=\"Monatlich\",Ausgaben[Betrag],IF(Ausgaben[[#This Row],[Häufigkeit]]=\"Wöchentlich\",Ausgaben[[#This Row],[Betrag]]*4,IF(Ausgaben[[#This Row],[Häufigkeit]]=\"Vierteljährlich\",Ausgaben[[#This Row],[Betrag]]/3,IF(Ausgaben[[#This Row],[Häufigkeit]]=\"Alle 6 Monate\",Ausgaben[[#This Row],[Betrag]]/6,IF(Ausgaben[[#This Row],[Häufigkeit]]=\"Jährlich\",Ausgaben[[#This Row],[Betrag]]/12,IF(Ausgaben[[#This Row],[Häufigkeit]]=\"Jede zweite Woche\",Ausgaben[[#This Row],[Betrag]]*2,IF(Ausgaben[[#This Row],[Häufigkeit]]=\"Jeden zweiten Monat\",Ausgaben[[#This Row],[Betrag]]/2,\"\"))))))),0),\"\"),\"\")","v":{"v":60,"d":"60 €"}},{"$f":"IF(Ausgaben[[#This Row],[Monatlicher Betrag]]<>\"\",Ausgaben[[#This Row],[Monatlicher Betrag]]/Einkünfte,\"\")","v":{"v":0.010456605088881143,"d":"1%"}}]
[null,"Filmabend","Unterhaltung",{"v":70,"d":"70 €"},"Monatlich",{"$f":"IF(Ausgaben[[#This Row],[Betrag]]>0,IF(Ausgaben[[#This Row],[Häufigkeit]]<>\"\",ROUND(IF(Ausgaben[[#This Row],[Häufigkeit]]=\"Monatlich\",Ausgaben[Betrag],IF(Ausgaben[[#This Row],[Häufigkeit]]=\"Wöchentlich\",Ausgaben[[#This Row],[Betrag]]*4,IF(Ausgaben[[#This Row],[Häufigkeit]]=\"Vierteljährlich\",Ausgaben[[#This Row],[Betrag]]/3,IF(Ausgaben[[#This Row],[Häufigkeit]]=\"Alle 6 Monate\",Ausgaben[[#This Row],[Betrag]]/6,IF(Ausgaben[[#This Row],[Häufigkeit]]=\"Jährlich\",Ausgaben[[#This Row],[Betrag]]/12,IF(Ausgaben[[#This Row],[Häufigkeit]]=\"Jede zweite Woche\",Ausgaben[[#This Row],[Betrag]]*2,IF(Ausgaben[[#This Row],[Häufigkeit]]=\"Jeden zweiten Monat\",Ausgaben[[#This Row],[Betrag]]/2,\"\"))))))),0),\"\"),\"\")","v":{"v":70,"d":"70 €"}},{"$f":"IF(Ausgaben[[#This Row],[Monatlicher Betrag]]<>\"\",Ausgaben[[#This Row],[Monatlicher Betrag]]/Einkünfte,\"\")","v":{"v":0.012199372603694667,"d":"1%"}}]
[null,"Turnschuhe","Sonstiges",{"v":300,"d":"300 €"},"Jährlich",{"$f":"IF(Ausgaben[[#This Row],[Betrag]]>0,IF(Ausgaben[[#This Row],[Häufigkeit]]<>\"\",ROUND(IF(Ausgaben[[#This Row],[Häufigkeit]]=\"Monatlich\",Ausgaben[Betrag],IF(Ausgaben[[#This Row],[Häufigkeit]]=\"Wöchentlich\",Ausgaben[[#This Row],[Betrag]]*4,IF(Ausgaben[[#This Row],[Häufigkeit]]=\"Vierteljährlich\",Ausgaben[[#This Row],[Betrag]]/3,IF(Ausgaben[[#This Row],[Häufigkeit]]=\"Alle 6 Monate\",Ausgaben[[#This Row],[Betrag]]/6,IF(Ausgaben[[#This Row],[Häufigkeit]]=\"Jährlich\",Ausgaben[[#This Row],[Betrag]]/12,IF(Ausgaben[[#This Row],[Häufigkeit]]=\"Jede zweite Woche\",Ausgaben[[#This Row],[Betrag]]*2,IF(Ausgaben[[#This Row],[Häufigkeit]]=\"Jeden zweiten Monat\",Ausgaben[[#This Row],[Betrag]]/2,\"\"))))))),0),\"\"),\"\")","v":{"v":25,"d":"25 €"}},{"$f":"IF(Ausgaben[[#This Row],[Monatlicher Betrag]]<>\"\",Ausgaben[[#This Row],[Monatlicher Betrag]]/Einkünfte,\"\")","v":{"v":0.00435691878703381,"d":"0%"}}]
[null,"Hundefutter","Sonstiges",{"v":60,"d":"60 €"},"Monatlich",{"$f":"IF(Ausgaben[[#This Row],[Betrag]]>0,IF(Ausgaben[[#This Row],[Häufigkeit]]<>\"\",ROUND(IF(Ausgaben[[#This Row],[Häufigkeit]]=\"Monatlich\",Ausgaben[Betrag],IF(Ausgaben[[#This Row],[Häufigkeit]]=\"Wöchentlich\",Ausgaben[[#This Row],[Betrag]]*4,IF(Ausgaben[[#This Row],[Häufigkeit]]=\"Vierteljährlich\",Ausgaben[[#This Row],[Betrag]]/3,IF(Ausgaben[[#This Row],[Häufigkeit]]=\"Alle 6 Monate\",Ausgaben[[#This Row],[Betrag]]/6,IF(Ausgaben[[#This Row],[Häufigkeit]]=\"Jährlich\",Ausgaben[[#This Row],[Betrag]]/12,IF(Ausgaben[[#This Row],[Häufigkeit]]=\"Jede zweite Woche\",Ausgaben[[#This Row],[Betrag]]*2,IF(Ausgaben[[#This Row],[Häufigkeit]]=\"Jeden zweiten Monat\",Ausgaben[[#This Row],[Betrag]]/2,\"\"))))))),0),\"\"),\"\")","v":{"v":60,"d":"60 €"}},{"$f":"IF(Ausgaben[[#This Row],[Monatlicher Betrag]]<>\"\",Ausgaben[[#This Row],[Monatlicher Betrag]]/Einkünfte,\"\")","v":{"v":0.010456605088881143,"d":"1%"}}]
[null,"Haustierversicherung","Sonstiges",{"v":70,"d":"70 €"},"Jährlich",{"$f":"IF(Ausgaben[[#This Row],[Betrag]]>0,IF(Ausgaben[[#This Row],[Häufigkeit]]<>\"\",ROUND(IF(Ausgaben[[#This Row],[Häufigkeit]]=\"Monatlich\",Ausgaben[Betrag],IF(Ausgaben[[#This Row],[Häufigkeit]]=\"Wöchentlich\",Ausgaben[[#This Row],[Betrag]]*4,IF(Ausgaben[[#This Row],[Häufigkeit]]=\"Vierteljährlich\",Ausgaben[[#This Row],[Betrag]]/3,IF(Ausgaben[[#This Row],[Häufigkeit]]=\"Alle 6 Monate\",Ausgaben[[#This Row],[Betrag]]/6,IF(Ausgaben[[#This Row],[Häufigkeit]]=\"Jährlich\",Ausgaben[[#This Row],[Betrag]]/12,IF(Ausgaben[[#This Row],[Häufigkeit]]=\"Jede zweite Woche\",Ausgaben[[#This Row],[Betrag]]*2,IF(Ausgaben[[#This Row],[Häufigkeit]]=\"Jeden zweiten Monat\",Ausgaben[[#This Row],[Betrag]]/2,\"\"))))))),0),\"\"),\"\")","v":{"v":6,"d":"6 €"}},{"$f":"IF(Ausgaben[[#This Row],[Monatlicher Betrag]]<>\"\",Ausgaben[[#This Row],[Monatlicher Betrag]]/Einkünfte,\"\")","v":{"v":1.0456605088881143E-3,"d":"0%"}}]
[null,"Lebensmittel","Nahrungsmittel",{"v":100,"d":"100 €"},"Wöchentlich",{"$f":"IF(Ausgaben[[#This Row],[Betrag]]>0,IF(Ausgaben[[#This Row],[Häufigkeit]]<>\"\",ROUND(IF(Ausgaben[[#This Row],[Häufigkeit]]=\"Monatlich\",Ausgaben[Betrag],IF(Ausgaben[[#This Row],[Häufigkeit]]=\"Wöchentlich\",Ausgaben[[#This Row],[Betrag]]*4,IF(Ausgaben[[#This Row],[Häufigkeit]]=\"Vierteljährlich\",Ausgaben[[#This Row],[Betrag]]/3,IF(Ausgaben[[#This Row],[Häufigkeit]]=\"Alle 6 Monate\",Ausgaben[[#This Row],[Betrag]]/6,IF(Ausgaben[[#This Row],[Häufigkeit]]=\"Jährlich\",Ausgaben[[#This Row],[Betrag]]/12,IF(Ausgaben[[#This Row],[Häufigkeit]]=\"Jede zweite Woche\",Ausgaben[[#This Row],[Betrag]]*2,IF(Ausgaben[[#This Row],[Häufigkeit]]=\"Jeden zweiten Monat\",Ausgaben[[#This Row],[Betrag]]/2,\"\"))))))),0),\"\"),\"\")","v":{"v":400,"d":"400 €"}},{"$f":"IF(Ausgaben[[#This Row],[Monatlicher Betrag]]<>\"\",Ausgaben[[#This Row],[Monatlicher Betrag]]/Einkünfte,\"\")","v":{"v":0.06971070059254096,"d":"7%"}}]
[null,"Kaffee","Nahrungsmittel",{"v":25,"d":"25 €"},"Wöchentlich",{"$f":"IF(Ausgaben[[#This Row],[Betrag]]>0,IF(Ausgaben[[#This Row],[Häufigkeit]]<>\"\",ROUND(IF(Ausgaben[[#This Row],[Häufigkeit]]=\"Monatlich\",Ausgaben[Betrag],IF(Ausgaben[[#This Row],[Häufigkeit]]=\"Wöchentlich\",Ausgaben[[#This Row],[Betrag]]*4,IF(Ausgaben[[#This Row],[Häufigkeit]]=\"Vierteljährlich\",Ausgaben[[#This Row],[Betrag]]/3,IF(Ausgaben[[#This Row],[Häufigkeit]]=\"Alle 6 Monate\",Ausgaben[[#This Row],[Betrag]]/6,IF(Ausgaben[[#This Row],[Häufigkeit]]=\"Jährlich\",Ausgaben[[#This Row],[Betrag]]/12,IF(Ausgaben[[#This Row],[Häufigkeit]]=\"Jede zweite Woche\",Ausgaben[[#This Row],[Betrag]]*2,IF(Ausgaben[[#This Row],[Häufigkeit]]=\"Jeden zweiten Monat\",Ausgaben[[#This Row],[Betrag]]/2,\"\"))))))),0),\"\"),\"\")","v":{"v":100,"d":"100 €"}},{"$f":"IF(Ausgaben[[#This Row],[Monatlicher Betrag]]<>\"\",Ausgaben[[#This Row],[Monatlicher Betrag]]/Einkünfte,\"\")","v":{"v":0.01742767514813524,"d":"2%"}}]
[null,"Kletterausrüstung","Unterhaltung",{"v":170,"d":"170 €"},"Jährlich",{"$f":"IF(Ausgaben[[#This Row],[Betrag]]>0,IF(Ausgaben[[#This Row],[Häufigkeit]]<>\"\",ROUND(IF(Ausgaben[[#This Row],[Häufigkeit]]=\"Monatlich\",Ausgaben[Betrag],IF(Ausgaben[[#This Row],[Häufigkeit]]=\"Wöchentlich\",Ausgaben[[#This Row],[Betrag]]*4,IF(Ausgaben[[#This Row],[Häufigkeit]]=\"Vierteljährlich\",Ausgaben[[#This Row],[Betrag]]/3,IF(Ausgaben[[#This Row],[Häufigkeit]]=\"Alle 6 Monate\",Ausgaben[[#This Row],[Betrag]]/6,IF(Ausgaben[[#This Row],[Häufigkeit]]=\"Jährlich\",Ausgaben[[#This Row],[Betrag]]/12,IF(Ausgaben[[#This Row],[Häufigkeit]]=\"Jede zweite Woche\",Ausgaben[[#This Row],[Betrag]]*2,IF(Ausgaben[[#This Row],[Häufigkeit]]=\"Jeden zweiten Monat\",Ausgaben[[#This Row],[Betrag]]/2,\"\"))))))),0),\"\"),\"\")","v":{"v":14,"d":"14 €"}},{"$f":"IF(Ausgaben[[#This Row],[Monatlicher Betrag]]<>\"\",Ausgaben[[#This Row],[Monatlicher Betrag]]/Einkünfte,\"\")","v":{"v":2.4398745207389336E-3,"d":"0%"}}]
[null,"Mitgliedschaft Fitnesscenter","Sonstiges",{"v":60,"d":"60 €"},"Monatlich",{"$f":"IF(Ausgaben[[#This Row],[Betrag]]>0,IF(Ausgaben[[#This Row],[Häufigkeit]]<>\"\",ROUND(IF(Ausgaben[[#This Row],[Häufigkeit]]=\"Monatlich\",Ausgaben[Betrag],IF(Ausgaben[[#This Row],[Häufigkeit]]=\"Wöchentlich\",Ausgaben[[#This Row],[Betrag]]*4,IF(Ausgaben[[#This Row],[Häufigkeit]]=\"Vierteljährlich\",Ausgaben[[#This Row],[Betrag]]/3,IF(Ausgaben[[#This Row],[Häufigkeit]]=\"Alle 6 Monate\",Ausgaben[[#This Row],[Betrag]]/6,IF(Ausgaben[[#This Row],[Häufigkeit]]=\"Jährlich\",Ausgaben[[#This Row],[Betrag]]/12,IF(Ausgaben[[#This Row],[Häufigkeit]]=\"Jede zweite Woche\",Ausgaben[[#This Row],[Betrag]]*2,IF(Ausgaben[[#This Row],[Häufigkeit]]=\"Jeden zweiten Monat\",Ausgaben[[#This Row],[Betrag]]/2,\"\"))))))),0),\"\"),\"\")","v":{"v":60,"d":"60 €"}},{"$f":"IF(Ausgaben[[#This Row],[Monatlicher Betrag]]<>\"\",Ausgaben[[#This Row],[Monatlicher Betrag]]/Einkünfte,\"\")","v":{"v":0.010456605088881143,"d":"1%"}}]
[null,"Kopfhörer","Unterhaltung",{"v":50,"d":"50 €"},"Jährlich",{"$f":"IF(Ausgaben[[#This Row],[Betrag]]>0,IF(Ausgaben[[#This Row],[Häufigkeit]]<>\"\",ROUND(IF(Ausgaben[[#This Row],[Häufigkeit]]=\"Monatlich\",Ausgaben[Betrag],IF(Ausgaben[[#This Row],[Häufigkeit]]=\"Wöchentlich\",Ausgaben[[#This Row],[Betrag]]*4,IF(Ausgaben[[#This Row],[Häufigkeit]]=\"Vierteljährlich\",Ausgaben[[#This Row],[Betrag]]/3,IF(Ausgaben[[#This Row],[Häufigkeit]]=\"Alle 6 Monate\",Ausgaben[[#This Row],[Betrag]]/6,IF(Ausgaben[[#This Row],[Häufigkeit]]=\"Jährlich\",Ausgaben[[#This Row],[Betrag]]/12,IF(Ausgaben[[#This Row],[Häufigkeit]]=\"Jede zweite Woche\",Ausgaben[[#This Row],[Betrag]]*2,IF(Ausgaben[[#This Row],[Häufigkeit]]=\"Jeden zweiten Monat\",Ausgaben[[#This Row],[Betrag]]/2,\"\"))))))),0),\"\"),\"\")","v":{"v":4,"d":"4 €"}},{"$f":"IF(Ausgaben[[#This Row],[Monatlicher Betrag]]<>\"\",Ausgaben[[#This Row],[Monatlicher Betrag]]/Einkünfte,\"\")","v":{"v":6.9710700592540956E-4,"d":"0%"}}]
[null,"Haarschnitt","Sonstiges",{"v":70,"d":"70 €"},"Monatlich",{"$f":"IF(Ausgaben[[#This Row],[Betrag]]>0,IF(Ausgaben[[#This Row],[Häufigkeit]]<>\"\",ROUND(IF(Ausgaben[[#This Row],[Häufigkeit]]=\"Monatlich\",Ausgaben[Betrag],IF(Ausgaben[[#This Row],[Häufigkeit]]=\"Wöchentlich\",Ausgaben[[#This Row],[Betrag]]*4,IF(Ausgaben[[#This Row],[Häufigkeit]]=\"Vierteljährlich\",Ausgaben[[#This Row],[Betrag]]/3,IF(Ausgaben[[#This Row],[Häufigkeit]]=\"Alle 6 Monate\",Ausgaben[[#This Row],[Betrag]]/6,IF(Ausgaben[[#This Row],[Häufigkeit]]=\"Jährlich\",Ausgaben[[#This Row],[Betrag]]/12,IF(Ausgaben[[#This Row],[Häufigkeit]]=\"Jede zweite Woche\",Ausgaben[[#This Row],[Betrag]]*2,IF(Ausgaben[[#This Row],[Häufigkeit]]=\"Jeden zweiten Monat\",Ausgaben[[#This Row],[Betrag]]/2,\"\"))))))),0),\"\"),\"\")","v":{"v":70,"d":"70 €"}},{"$f":"IF(Ausgaben[[#This Row],[Monatlicher Betrag]]<>\"\",Ausgaben[[#This Row],[Monatlicher Betrag]]/Einkünfte,\"\")","v":{"v":0.012199372603694667,"d":"1%"}}]
[null,"Videospiele","Unterhaltung",{"v":100,"d":"100 €"},"Monatlich",{"$f":"IF(Ausgaben[[#This Row],[Betrag]]>0,IF(Ausgaben[[#This Row],[Häufigkeit]]<>\"\",ROUND(IF(Ausgaben[[#This Row],[Häufigkeit]]=\"Monatlich\",Ausgaben[Betrag],IF(Ausgaben[[#This Row],[Häufigkeit]]=\"Wöchentlich\",Ausgaben[[#This Row],[Betrag]]*4,IF(Ausgaben[[#This Row],[Häufigkeit]]=\"Vierteljährlich\",Ausgaben[[#This Row],[Betrag]]/3,IF(Ausgaben[[#This Row],[Häufigkeit]]=\"Alle 6 Monate\",Ausgaben[[#This Row],[Betrag]]/6,IF(Ausgaben[[#This Row],[Häufigkeit]]=\"Jährlich\",Ausgaben[[#This Row],[Betrag]]/12,IF(Ausgaben[[#This Row],[Häufigkeit]]=\"Jede zweite Woche\",Ausgaben[[#This Row],[Betrag]]*2,IF(Ausgaben[[#This Row],[Häufigkeit]]=\"Jeden zweiten Monat\",Ausgaben[[#This Row],[Betrag]]/2,\"\"))))))),0),\"\"),\"\")","v":{"v":100,"d":"100 €"}},{"$f":"IF(Ausgaben[[#This Row],[Monatlicher Betrag]]<>\"\",Ausgaben[[#This Row],[Monatlicher Betrag]]/Einkünfte,\"\")","v":{"v":0.01742767514813524,"d":"2%"}}]
[null,"Kleidung","Sonstiges",{"v":500,"d":"500 €"},"Jährlich",{"$f":"IF(Ausgaben[[#This Row],[Betrag]]>0,IF(Ausgaben[[#This Row],[Häufigkeit]]<>\"\",ROUND(IF(Ausgaben[[#This Row],[Häufigkeit]]=\"Monatlich\",Ausgaben[Betrag],IF(Ausgaben[[#This Row],[Häufigkeit]]=\"Wöchentlich\",Ausgaben[[#This Row],[Betrag]]*4,IF(Ausgaben[[#This Row],[Häufigkeit]]=\"Vierteljährlich\",Ausgaben[[#This Row],[Betrag]]/3,IF(Ausgaben[[#This Row],[Häufigkeit]]=\"Alle 6 Monate\",Ausgaben[[#This Row],[Betrag]]/6,IF(Ausgaben[[#This Row],[Häufigkeit]]=\"Jährlich\",Ausgaben[[#This Row],[Betrag]]/12,IF(Ausgaben[[#This Row],[Häufigkeit]]=\"Jede zweite Woche\",Ausgaben[[#This Row],[Betrag]]*2,IF(Ausgaben[[#This Row],[Häufigkeit]]=\"Jeden zweiten Monat\",Ausgaben[[#This Row],[Betrag]]/2,\"\"))))))),0),\"\"),\"\")","v":{"v":42,"d":"42 €"}},{"$f":"IF(Ausgaben[[#This Row],[Monatlicher Betrag]]<>\"\",Ausgaben[[#This Row],[Monatlicher Betrag]]/Einkünfte,\"\")","v":{"v":7.3196235622168E-3,"d":"1%"}}]

{"sheet":"Daten","index":2,"n_rows":10,"n_cols":5,"rows_kept":10,"hidden":true}
["Dieses Blatt sollte nicht angezeigt werden."]
["Kategorien","Betrag pro Kategorie","Anteil Gesamtsumme in %","Häufigkeit","Ersparnisse"]
["Wohnen",{"$f":"IF(SUMIF(Ausgaben[Kategorie],\"Wohnen\",Ausgaben[Monatlicher Betrag])>0,SUMIF(Ausgaben[Kategorie],\"Wohnen\",Ausgaben[Monatlicher Betrag]),NA())","v":{"v":1660,"d":"1,660 €"}},{"$f":"IF(B3>0,B3/Einkünfte,\"\")","v":{"v":0.289299407459045,"d":"29%"}},"Wöchentlich",{"$f":"Einkünfte-SUM(Ausgaben[Monatlicher Betrag])","v":{"v":2777,"d":"2,777 €"}}]
["Unterhaltung",{"$f":"IF(SUMIF(Ausgaben[Kategorie],\"Unterhaltung\",Ausgaben[Monatlicher Betrag])>0,SUMIF(Ausgaben[Kategorie],\"Unterhaltung\",Ausgaben[Monatlicher Betrag]),NA())","v":{"v":188,"d":"188 €"}},{"v":0.03276402927849425,"d":"3%"},"Monatlich"]
["Verkehrsmittel",{"$f":"IF(SUMIF(Ausgaben[Kategorie],\"Verkehrsmittel\",Ausgaben[Monatlicher Betrag])>0,SUMIF(Ausgaben[Kategorie],\"Verkehrsmittel\",Ausgaben[Monatlicher Betrag]),NA())","v":{"v":350,"d":"350 €"}},{"v":0.06099686301847333,"d":"6%"},"Vierteljährlich"]
["Nahrungsmittel",{"$f":"IF(SUMIF(Ausgaben[Kategorie],\"Nahrungsmittel\",Ausgaben[Monatlicher Betrag])>0,SUMIF(Ausgaben[Kategorie],\"Nahrungsmittel\",Ausgaben[Monatlicher Betrag]),NA())","v":{"v":500,"d":"500 €"}},{"v":0.08713837574067619,"d":"9%"},"Alle 6 Monate"]
["Sonstiges",{"$f":"IF(SUMIF(Ausgaben[Kategorie],\"Sonstiges\",Ausgaben[Monatlicher Betrag])>0,SUMIF(Ausgaben[Kategorie],\"Sonstiges\",Ausgaben[Monatlicher Betrag]),NA())","v":{"v":263,"d":"263 €"}},{"v":0.04583478563959568,"d":"5%"},"Jährlich"]
["Ersparnisse",{"$f":"IF(E3>0,E3,NA())","v":{"v":2777,"d":"2,777 €"}},{"v":0.4839665388637156,"d":"48%"},"Jede zweite Woche"]
[{"$nulls":3},"Jeden zweiten Monat"]
[null,"ERGEBNIS:",{"$f":"SUM(C3:C8)","v":{"v":1,"d":"100%"}}]